[Event "CZE Extraliga 2019-20"]
[Site "Czech Republic"]
[Date "2019.11.30"]
[Round "3.8"]
[White "Vymazal, Bronislav"]
[Black "Meduna, Eduard"]
[Result "1/2-1/2"]
[ECO "A03"]
[WhiteElo "2347"]
[BlackElo "2377"]
[Annotator "ChessBase"]
[PlyCount "50"]
[EventDate "2019.09.15"]
[EventType "team-tourn"]
[EventCountry "CZE"]
[SourceTitle "playchess.com"]
[Source "ChessBase"]
[SourceQuality "1"]
[WhiteTeam "Brno"]
[BlackTeam "Lysa nad Labem"]
[TimeControl "40/5400+30:1800+30"]

1. g3 {[%emt 0:00:00]} Nf6 {[%emt 0:00:31]} 2. Bg2 {[%emt 0:00:00]} d5 {[%emt 0:00:42]} 3. f4 {[%emt 0:00:00]} g6 {[%emt 0:01:28]} 4. Nf3 {[%emt 0:00:00]} Bg7 {[%emt 0:00:12]} 5. O-O {[%emt 0:00:01]} c5 {[%emt 0:00:48]} 6. d3 {[%emt 0:00:07]} Nc6 {[%emt 0:00:40]} 7. Qe1 {[%emt 0:10:37]} d4 {[%emt 0:03:25]} 8. Na3 {[%emt 0:04:09]} Nd5 {[%emt 0:05:50]} 9. Nc4 {[%emt 0:12:29]} O-O {[%emt 0:00:26]} 10. e4 {[%emt 0:15:49]} dxe3 {[%emt 0:01:17]} 11. c3 {[%emt 0:00:22]} b6 {[%emt 0:09:34]} 12. Bxe3 {[%emt 0:02:08]} Bb7 {[%emt 0:02:47]} 13. Rd1 {[%emt 0:00:29]} Nxe3 {[%emt 0:01:12]} 14. Qxe3 {[%emt 0:00:08]} Qc7 {[%emt 0:00:52]} 15. Rfe1 {[%emt 0:00:32]} Rad8 {[%emt 0:01:01]} 16. h4 {[%emt 0:02:31]} h5 {[%emt 0:06:53]} 17. Nce5 {[%emt 0:09:59]} Nxe5 {[%emt 0:04:56]} 18. Nxe5 {[%emt 0:00:33]} Bxg2 {[%emt 0:00:37]} 19. Kxg2 {[%emt 0:00:04]} e6 {[%emt 0:00:46]} 20. Rd2 {[%emt 0:13:51]} Rd5 {[%emt 0:01:26]} 21. Nf3 {[%emt 0:00:10]} Rfd8 {[%emt 0:01:17]} 22. Red1 {[%emt 0:01:15]} Bf6 {[%emt 0:04:57]} 23. Kf2 {[%emt 0:07:41]} b5 {[%emt 0:04:26]} 24. d4 {[%emt 0:07:26]} cxd4 {[%emt 0:00:30]} 25. Nxd4 {[%emt 0:01:47]} Bxd4 {[%emt 0:04:08]} 1/2-1/2

[Event "CZE Extraliga 2019-20"]
[Site "Czech Republic"]
[Date "2019.11.30"]
[Round "3.8"]
[White "Studnicka, Tomas"]
[Black "Vrbata, Zbynek"]
[Result "1-0"]
[ECO "E70"]
[WhiteElo "2341"]
[BlackElo "2353"]
[Annotator "NA"]
[PlyCount "81"]
[EventDate "2019.09.15"]
[EventType "team-tourn"]
[EventCountry "CZE"]
[SourceTitle "playchess.com"]
[Source "ChessBase"]
[SourceQuality "1"]
[WhiteTeam "Turnov"]
[BlackTeam "Siesta Solution Unichess"]
[TimeControl "40/5400+30:1800+30"]

1. d4 {[%emt 0:00:00]} Nf6 {[%emt 0:00:00]} 2. c4 {[%emt 0:00:00]} g6 {[%emt 0:00:16]} 3. Nc3 {[%emt 0:00:00]} Bg7 {[%emt 0:00:26]} 4. e4 {[%emt 0:00:04]} O-O {[%emt 0:00:19]} 5. Bd3 {[%emt 0:00:05]} d6 {[%emt 0:00:40]} 6. Nge2 {[%emt 0:00:02]} Nc6 {[%emt 0:06:20]} 7. h3 {[%emt 0:05:27]} Nd7 {[%emt 0:06:38]} 8. Be3 {[%emt 0:04:08]} e5 {[%emt 0:04:36]} 9. d5 {[%emt 0:01:43]} Ne7 {[%emt 0:01:35]} 10. Qd2 {[%emt 0:01:25]} f5 {[%emt 0:06:09]} 11. f3 {[%emt 0:00:29]} f4 {[%emt 0:08:25]} 12. Bf2 {[%emt 0:00:12]} g5 {[%emt 0:00:39]} 13. O-O-O {[%emt 0:12:16]} b6 {[%emt 0:03:43]} 14. h4 {[%emt 0:19:38]} g4 {[%emt 0:09:36]} 15. fxg4 {[%emt 0:01:56]} Nf6 {[%emt 0:03:43]} 16. g5 {[%emt 0:00:27]} Ng4 {[%emt 0:00:24]} 17. Ng1 {[%emt 0:00:31]} h6 {[%emt 0:04:13]} 18. Nf3 {[%emt 0:01:12]} Bd7 {[%emt 0:06:52]} 19. Rdf1 {[%emt 0:04:20]} hxg5 {[%emt 0:07:33]} 20. hxg5 {[%emt 0:05:24]} Ng6 {[%emt 0:03:54]} 21. Bg1 {[%emt 0:00:30]} Qe7 {[%emt 0:04:22]} 22. Ne2 {[%emt 0:05:16]} Rf7 {[%emt 0:02:19]} 23. Kb1 {[%emt 0:01:09]} Raf8 {[%emt 0:02:12]} 24. Nc3 {[%emt 0:00:12]} Ra8 {[%emt 0:07:15]} 25. Bc2 {[%emt 0:00:33]} Qe8 {[%emt 0:02:22]} 26. Qe1 {[%emt 0:00:47]} Qe7 {[%emt 0:01:08]} 27. Ba4 {[%emt 0:01:08]} Bc8 {[%emt 0:00:13]} 28. Bc6 {[%emt 0:13:19]} Rb8 {[%emt 0:00:10]} 29. Nb5 {[%emt 0:00:28]} a6 {[%emt 0:05:21]} 30. Na7 {[%emt 0:01:04]} Bd7 {[%emt 0:02:25]} 31. Bxd7 {[%emt 0:02:22]} Qxd7 {[%emt 0:00:02]} 32. Nc6 {[%emt 0:00:13]} Re8 {[%emt 0:00:37]} 33. Nh4 {[%emt 0:00:13]} Ne7 {[%emt 0:00:22]} 34. Nxe7+ {[%emt 0:00:12]} Qxe7 {[%emt 0:00:19]} 35. Nf3 {[%emt 0:00:49]} Qd7 {[%emt 0:01:20]} 36. Qh4 {[%emt 0:00:41]} Ne3 {[%emt 0:00:32]} 37. Bxe3 {[%emt 0:01:39]} fxe3 {[%emt 0:00:01]} 38. Qh7+ {[%emt 0:00:25]} Kf8 {[%emt 0:00:01]} 39. Nh4 {[%emt 0:00:15]} Rf2 {[%emt 0:00:23]} 40. Rxf2+ {[%emt 0:00:53]} exf2 {[%emt 0:00:02]} 41. Rf1 {[%emt 0:30:05]} 1-0

[Event "CZE Extraliga 2019-20"]
[Site "Czech Republic"]
[Date "2019.11.30"]
[Round "3.8"]
[White "Rosko, Lubos"]
[Black "Hausner, Ivan"]
[Result "1/2-1/2"]
[ECO "A49"]
[WhiteElo "2317"]
[BlackElo "2382"]
[Annotator "NA"]
[PlyCount "27"]
[EventDate "2019.09.15"]
[EventType "team-tourn"]
[EventCountry "CZE"]
[SourceTitle "playchess.com"]
[Source "ChessBase"]
[SourceQuality "1"]
[WhiteTeam "Pardubice"]
[BlackTeam "Praha"]
[TimeControl "40/5400+30:1800+30"]

1. d4 {[%emt 0:00:00]} Nf6 {[%emt 0:00:00]} 2. Nf3 {[%emt 0:00:16]} g6 {[%emt 0:00:00]} 3. g3 {[%emt 0:01:05]} Bg7 {[%emt 0:00:00]} 4. Bg2 {[%emt 0:00:12]} O-O {[%emt 0:00:07]} 5. O-O {[%emt 0:00:07]} d6 {[%emt 0:00:03]} 6. b3 {[%emt 0:05:26]} Nbd7 {[%emt 0:00:31]} 7. Bb2 {[%emt 0:00:17]} e5 {[%emt 0:00:43]} 8. dxe5 {[%emt 0:03:26]} Ng4 {[%emt 0:00:11]} 9. c4 {[%emt 0:01:12]} dxe5 {[%emt 0:01:19]} 10. h3 {[%emt 0:18:35]} Nh6 {[%emt 0:00:05]} 11. e4 {[%emt 0:06:13]} f6 {[%emt 0:01:27]} 12. Nc3 {[%emt 0:08:56]} c6 {[%emt 0:02:05]} 13. Ba3 {[%emt 0:04:01]} Re8 {[%emt 0:00:08]} 14. Qd2 {[%emt 0:01:21]} 1/2-1/2

[Event "CZE Extraliga 2019-20"]
[Site "Czech Republic"]
[Date "2019.11.30"]
[Round "3.8"]
[White "Krajina, Ales"]
[Black "Rabatin, Jakub"]
[Result "1-0"]
[ECO "A46"]
[WhiteElo "2141"]
[BlackElo "2303"]
[Annotator "NA"]
[PlyCount "99"]
[EventDate "2019.09.15"]
[EventType "team-tourn"]
[EventCountry "CZE"]
[SourceTitle "playchess.com"]
[Source "ChessBase"]
[SourceQuality "1"]
[WhiteTeam "Ostrava"]
[BlackTeam "Frydek-Mistek"]
[TimeControl "40/5400+30:1800+30"]

1. d4 {[%emt 0:00:00]} Nf6 {[%emt 0:00:00]} 2. Nf3 {[%emt 0:00:05]} e6 {[%emt 0:00:00]} 3. Bg5 {[%emt 0:00:59]} h6 {[%emt 0:00:00]} 4. Bxf6 {[%emt 0:00:13]} Qxf6 {[%emt 0:00:02]} 5. e4 {[%emt 0:00:14]} d6 {[%emt 0:00:47]} 6. Nc3 {[%emt 0:01:35]} Nd7 {[%emt 0:00:08]} 7. Qe2 {[%emt 0:02:11]} Qd8 {[%emt 0:02:57]} 8. Rd1 {[%emt 0:02:59]} a6 {[%emt 0:10:17]} 9. g3 {[%emt 0:10:12]} Be7 {[%emt 0:07:04]} 10. Bg2 {[%emt 0:01:03]} O-O {[%emt 0:00:51]} 11. O-O {[%emt 0:00:34]} b5 $11 {[%emt 0:01:47]} 12. e5 {[%emt 0:07:51]} d5 {[%emt 0:03:58]} 13. Qe3 {[%emt 0:13:24]} c5 {[%emt 0:14:36]} 14. Ne2 {[%emt 0:04:15]} cxd4 {[%emt 0:12:42]} 15. Nfxd4 {[%emt 0:03:28]} Qc7 {[%emt 0:06:03]} 16. f4 {[%emt 0:02:45]} Bb7 {[%emt 0:04:05]} 17. c3 {[%emt 0:06:31]} Rad8 {[%emt 0:01:56]} 18. a3 {[%emt 0:05:36]} Nb6 {[%emt 0:04:55]} 19. Nf3 {[%emt 0:00:07]} Nc4 {[%emt 0:05:49]} 20. Qc1 {[%emt 0:00:52]} Qb6+ {[%emt 0:09:21]} 21. Ned4 a5 22. Kh1 {[%emt 0:02:36]} Rfe8 {[%emt 0:04:11]} 23. Rde1 {[%emt 0:01:40]} Bf8 {[%emt 0:01:11]} 24. f5 exf5 {[%emt 0:00:18]} 25. Nxf5 {[%emt 0:01:54]} b4 {[%emt 0:00:58]} 26. axb4 {[%emt 0:00:18]} axb4 {[%emt 0:00:02]} 27. N5d4 {[%emt 0:00:33]} Bc8 {[%emt 0:06:17]} 28. Rf2 {[%emt 0:02:40]} Qc7 {[%emt 0:01:49]} 29. Rfe2 {[%emt 0:06:25]} bxc3 {[%emt 0:00:22]} 30. bxc3 {[%emt 0:03:56]} Ba3 {[%emt 0:01:49]} 31. Qa1 {[%emt 0:04:37]} Bc5 {[%emt 0:00:37]} 32. Qc1 {[%emt 0:05:27]} Ba3 {[%emt 0:00:31]} 33. Qf4 {[%emt 0:00:21]} Be6 {[%emt 0:00:30]} 34. Nxe6 {[%emt 0:00:45]} fxe6 {[%emt 0:00:32]} 35. Nd4 {[%emt 0:00:14]} Bc5 {[%emt 0:00:32]} 36. Qg4 {[%emt 0:01:15]} Qd7 {[%emt 0:00:30]} 37. Bh3 {[%emt 0:00:54]} Bxd4 {[%emt 0:00:15]} 38. cxd4 {[%emt 0:00:04]} Na5 {[%emt 0:00:42]} 39. Rf2 {[%emt 0:00:28]} Kh7 {[%emt 0:00:32]} 40. Ref1 {[%emt 0:00:12]} Re7 {[%emt 0:00:29]} 41. Rf3 Rb8 {[%emt 0:04:34]} 42. R1f2 {[%emt 0:03:32]} Rb3 {[%emt 0:12:44]} 43. Rf8 {[%emt 0:21:42]} Qc7 {[%emt 0:04:38]} 44. Bf1 {[%emt 0:06:33]} Qc1 {[%emt 0:09:10]} 45. R2f7 {[%emt 0:01:36]} Rxf7 {[%emt 0:00:45]} 46. Rxf7 {[%emt 0:00:46]} Qg5 {[%emt 0:00:30]} 47. Qxe6 {[%emt 0:00:30]} h5 48. Qxd5 {[%emt 0:02:23]} Qd2 {[%emt 0:01:40]} 49. Rf5 {[%emt 0:02:09]} Rb1 {[%emt 0:00:33]} 50. Qe4 {[%emt 0:01:20]} 1-0

[Event "CZE Extraliga 2019-20"]
[Site "Czech Republic"]
[Date "2019.12.02"]
[Round "3.8"]
[White "Barak, David"]
[Black "Kriebel, Tadeas"]
[Result "1/2-1/2"]
[ECO "D37"]
[WhiteElo "2070"]
[BlackElo "2516"]
[Annotator "ChessBase"]
[PlyCount "71"]
[EventDate "2019.09.15"]
[EventType "team-tourn"]
[EventCountry "CZE"]
[SourceTitle "playchess.com"]
[Source "ChessBase"]
[SourceQuality "1"]
[WhiteTeam "Duras"]
[BlackTeam "Novoborsky"]
[WhiteTeamCountry "CZE"]
[BlackTeamCountry "CZE"]
[TimeControl "40/5400+30:1800+30"]

1. d4 {[%emt 0:00:00]} d5 {[%emt 0:00:00]} 2. c4 {[%emt 0:00:00]} e6 {[%emt 0:00:00]} 3. Nc3 {[%emt 0:00:00]} a6 {[%emt 0:00:26]} 4. cxd5 {[%emt 0:00:00]} exd5 {[%emt 0:00:00]} 5. Nf3 {[%emt 0:00:06]} Nf6 {[%emt 0:00:00]} 6. Bg5 {[%emt 0:00:44]} Be6 {[%emt 0:00:16]} 7. e3 {[%emt 0:00:13]} Nbd7 {[%emt 0:00:19]} 8. Bd3 {[%emt 0:00:21]} Bd6 {[%emt 0:00:32]} 9. O-O {[%emt 0:01:11]} c6 {[%emt 0:00:15]} 10. Bf4 {[%emt 0:12:52]} Qc7 {[%emt 0:00:08]} 11. Bxd6 {[%emt 0:00:56]} Qxd6 {[%emt 0:00:05]} 12. Qc2 {[%emt 0:00:37]} O-O {[%emt 0:00:55]} 13. Rac1 {[%emt 0:03:28]} Rfe8 {[%emt 0:03:52]} 14. h3 {[%emt 0:10:28]} g6 {[%emt 0:03:50]} 15. Na4 {[%emt 0:07:47]} Rab8 {[%emt 0:06:23]} 16. Nc5 {[%emt 0:05:07]} Nh5 {[%emt 0:02:29]} 17. b4 {[%emt 0:06:11]} Ng7 {[%emt 0:04:02]} 18. a4 {[%emt 0:02:50]} Bf5 {[%emt 0:02:18]} 19. Nxd7 {[%emt 0:05:52]} Qxd7 {[%emt 0:01:02]} 20. Ne5 {[%emt 0:01:09]} Qe6 {[%emt 0:04:17]} 21. b5 {[%emt 0:13:53]} f6 {[%emt 0:03:35]} 22. Bxf5 {[%emt 0:03:26]} Nxf5 {[%emt 0:00:10]} 23. Nd3 {[%emt 0:00:12]} axb5 {[%emt 0:03:21]} 24. axb5 {[%emt 0:00:14]} Ne7 {[%emt 0:00:24]} 25. bxc6 {[%emt 0:05:23]} bxc6 {[%emt 0:00:08]} 26. Nf4 {[%emt 0:03:33]} Qd6 {[%emt 0:00:16]} 27. Qc5 {[%emt 0:02:32]} Qxc5 {[%emt 0:00:31]} 28. Rxc5 {[%emt 0:00:03]} Kf7 {[%emt 0:00:21]} 29. Ra1 {[%emt 0:02:42]} Ra8 {[%emt 0:00:38]} 30. Rca5 {[%emt 0:02:05]} Rxa5 {[%emt 0:00:07]} 31. Rxa5 {[%emt 0:00:01]} Rb8 {[%emt 0:00:34]} 32. Ra7 {[%emt 0:01:42]} Rb1+ {[%emt 0:09:14]} 33. Kh2 {[%emt 0:00:00]} Rb2 {[%emt 0:00:36]} 34. Kg1 {[%emt 0:02:30]} Rb1+ {[%emt 0:01:10]} 35. Kh2 {[%emt 0:00:04]} Rb2 {[%emt 0:00:04]} 36. Kg1 {[%emt 0:00:20]} 1/2-1/2

[Event "CZE Extraliga 2019-20"]
[Site "Czech Republic"]
[Date "2020.01.25"]
[Round "5.2"]
[White "Ftacnik, Lubomir"]
[Black "Shengelia, David"]
[Result "0-1"]
[ECO "A50"]
[WhiteElo "2520"]
[BlackElo "2531"]
[Annotator "ChessBase"]
[PlyCount "102"]
[EventDate "2019.09.15"]
[EventType "team-tourn"]
[EventCountry "CZE"]
[SourceTitle "playchess.com"]
[Source "ChessBase"]
[SourceQuality "1"]
[TimeControl "40/5400+30:1800+30"]

1. Nf3 {[%emt 0:00:00]} Nf6 {[%emt 0:00:00]} 2. c4 {[%emt 0:00:00]} b6 {[%emt 0:00:40]} 3. g3 {[%emt 0:00:00]} Bb7 {[%emt 0:00:14]} 4. Bg2 {[%emt 0:00:07]} g6 {[%emt 0:00:51]} 5. O-O {[%emt 0:01:30]} Bg7 {[%emt 0:00:09]} 6. Nc3 {[%emt 0:00:33]} O-O {[%emt 0:00:46]} 7. d4 {[%emt 0:05:43]} Ne4 {[%emt 0:00:55]} 8. Nxe4 {[%emt 0:00:28]} Bxe4 {[%emt 0:00:04]} 9. Be3 {[%emt 0:00:17]} d5 {[%emt 0:00:47]} 10. Qc1 {[%emt 0:02:47]} Nc6 {[%emt 0:11:21]} 11. Rd1 {[%emt 0:00:48]} Qd7 {[%emt 0:25:34]} 12. cxd5 {[%emt 0:31:17]} Qxd5 {[%emt 0:02:51]} 13. Bh6 {[%emt 0:00:31]} Rfd8 {[%emt 0:10:55]} 14. Bxg7 {[%emt 0:00:18]} Kxg7 {[%emt 0:00:04]} 15. Qc3 {[%emt 0:14:10]} Rd6 {[%emt 0:04:58]} 16. Ne1 {[%emt 0:09:02]} Bxg2 {[%emt 0:01:42]} 17. Nxg2 {[%emt 0:00:02]} Qa5 {[%emt 0:18:12]} 18. Qxa5 {[%emt 0:03:28]} bxa5 {[%emt 0:00:09]} 19. d5 {[%emt 0:08:29]} Rad8 {[%emt 0:05:10]} 20. e4 {[%emt 0:01:44]} e6 {[%emt 0:00:59]} 21. Ne3 {[%emt 0:01:30]} exd5 {[%emt 0:00:25]} 22. Rxd5 {[%emt 0:03:44]} Rb8 {[%emt 0:10:16]} 23. Rc1 {[%emt 0:04:17]} Re6 {[%emt 0:00:29]} 24. b3 {[%emt 0:04:14]} a4 {[%emt 0:00:16]} 25. bxa4 {[%emt 0:02:04]} Rb4 {[%emt 0:01:45]} 26. Rdc5 {[%emt 0:02:33]} Ne5 {[%emt 0:01:18]} 27. Rxc7 {[%emt 0:01:58]} Rxa4 {[%emt 0:00:14]} 28. Rb1 {[%emt 0:00:24]} Rxa2 {[%emt 0:01:03]} 29. Rbb7 {[%emt 0:00:06]} Rf6 {[%emt 0:00:52]} 30. Rc2 {[%emt 0:01:18]} Nf3+ {[%emt 0:00:06]} 31. Kf1 {[%emt 0:00:19]} Ra1+ {[%emt 0:00:20]} 32. Ke2 {[%emt 0:00:02]} Nd4+ {[%emt 0:00:14]} 33. Kd3 {[%emt 0:00:06]} Nxc2 {[%emt 0:00:30]} 34. Nxc2 {[%emt 0:00:01]} Rh1 {[%emt 0:01:37]} 35. f4 {[%emt 0:00:41]} Rxh2 {[%emt 0:00:40]} 36. Nd4 {[%emt 0:01:06]} Rg2 {[%emt 0:00:40]} 37. e5 {[%emt 0:00:31]} Rxg3+ {[%emt 0:00:27]} 38. Ke4 {[%emt 0:00:01]} Rb6 {[%emt 0:00:23]} 39. Rxa7 {[%emt 0:00:07]} Rg1 {[%emt 0:00:27]} 40. f5 {[%emt 0:00:52]} Re1+ {[%emt 0:00:22]} 41. Kd5 {[%emt 0:31:57]} gxf5 {[%emt 0:16:16]} 42. Nxf5+ {[%emt 0:00:00]} Kg6 {[%emt 0:00:11]} 43. Nd6 {[%emt 0:00:00]} Rd1+ {[%emt 0:08:31]} 44. Kc5 {[%emt 0:00:00]} Rb2 {[%emt 0:00:32]} 45. Kc4 {[%emt 0:00:00]} Rc2+ {[%emt 0:00:38]} 46. Kb3 {[%emt 0:00:00]} Rc6 {[%emt 0:03:12]} 47. Nxf7 {[%emt 0:00:00]} Rb1+ {[%emt 0:00:06]} 48. Ka2 {[%emt 0:00:00]} Rbb6 {[%emt 0:01:16]} 49. Rd7 {[%emt 0:00:00]} Rb8 {[%emt 0:00:21]} 50. Ra7 {[%emt 0:00:00]} h5 {[%emt 0:00:56]} 51. Nd6 {[%emt 0:00:55]} h4 {[%emt 0:00:09]} 0-1

[Event "CZE Extraliga 2019-20"]
[Site "Czech Republic"]
[Date "2020.01.25"]
[Round "5.4"]
[White "Mazur, Stefan"]
[Black "Bartel, Mateusz"]
[Result "1/2-1/2"]
[ECO "B15"]
[WhiteElo "2445"]
[BlackElo "2621"]
[Annotator "RC"]
[PlyCount "68"]
[EventDate "2019.09.15"]
[EventType "team-tourn"]
[EventCountry "CZE"]
[SourceTitle "playchess.com"]
[Source "ChessBase"]
[SourceQuality "1"]
[TimeControl "40/5400+30:1800+30"]

1. e4 {[%emt 0:00:00]} c6 {[%emt 0:00:09]} 2. d4 {[%emt 0:01:05]} d5 {[%emt 0:01:27]} 3. Nd2 {[%emt 0:00:08]} dxe4 {[%emt 0:00:05]} 4. Nxe4 {[%emt 0:00:06]} Nf6 {[%emt 0:00:03]} 5. Nxf6+ {[%emt 0:01:02]} exf6 {[%emt 0:00:19]} 6. c3 {[%emt 0:05:12]} Bd6 {[%emt 0:00:03]} 7. Bd3 {[%emt 0:00:10]} O-O {[%emt 0:00:04]} 8. Qc2 {[%emt 0:00:25]} Re8+ {[%emt 0:00:07]} 9. Ne2 {[%emt 0:00:08]} h5 {[%emt 0:00:05]} 10. O-O {[%emt 0:03:26]} Qc7 {[%emt 0:00:11]} 11. h3 {[%emt 0:03:10]} Nd7 {[%emt 0:00:21]} 12. Ng3 {[%emt 0:07:45]} Bxg3 {[%emt 0:11:21]} 13. fxg3 {[%emt 0:00:07]} Nf8 {[%emt 0:00:04]} 14. Bf4 {[%emt 0:01:31]} Qd8 {[%emt 0:00:24]} 15. Rad1 {[%emt 0:08:32]} Be6 {[%emt 0:03:21]} 16. Kh2 {[%emt 0:06:57]} Ng6 {[%emt 0:04:17]} 17. Bxg6 {[%emt 0:06:54]} fxg6 {[%emt 0:00:16]} 18. Qxg6 {[%emt 0:09:37]} Bxa2 {[%emt 0:04:57]} 19. Qxh5 {[%emt 0:05:39]} Bf7 {[%emt 0:00:36]} 20. Qg4 {[%emt 0:01:26]} Re4 {[%emt 0:00:03]} 21. Rfe1 {[%emt 0:10:24]} Qe8 {[%emt 0:08:19]} 22. Rxe4 {[%emt 0:01:51]} Qxe4 {[%emt 0:00:04]} 23. Qf3 {[%emt 0:00:44]} Qxf3 {[%emt 0:08:50]} 24. gxf3 {[%emt 0:00:10]} Re8 {[%emt 0:00:02]} 25. Rd2 {[%emt 0:01:08]} g5 {[%emt 0:00:05]} 26. Bd6 {[%emt 0:01:04]} Bd5 {[%emt 0:00:09]} 27. Kg2 {[%emt 0:04:27]} Re3 {[%emt 0:00:16]} 28. Rf2 {[%emt 0:00:39]} a5 {[%emt 0:02:35]} 29. g4 {[%emt 0:01:34]} b5 {[%emt 0:00:17]} 30. Bc7 {[%emt 0:04:52]} a4 {[%emt 0:00:05]} 31. Bd6 {[%emt 0:00:08]} Kf7 {[%emt 0:00:02]} 32. Kg3 {[%emt 0:00:13]} Ke6 {[%emt 0:05:04]} 33. Bc5 {[%emt 0:00:22]} Kf7 {[%emt 0:00:45]} 34. Bd6 {[%emt 0:01:03]} Ke6 {[%emt 0:03:53]} 1/2-1/2

[Event "CZE Extraliga 2019-20"]
[Site "Czech Republic"]
[Date "2020.01.25"]
[Round "5.6"]
[White "Simacek, Pavel"]
[Black "Roubalik, Jakub"]
[Result "1/2-1/2"]
[ECO "B32"]
[WhiteElo "2486"]
[BlackElo "2405"]
[Annotator "ChessBase"]
[PlyCount "112"]
[EventDate "2019.09.15"]
[EventType "team-tourn"]
[EventCountry "CZE"]
[SourceTitle "playchess.com"]
[Source "ChessBase"]
[SourceQuality "1"]
[TimeControl "40/5400+30:1800+30"]

1. e4 {[%emt 0:00:00]} c5 {[%emt 0:00:00]} 2. Nf3 {[%emt 0:00:05]} Nc6 {[%emt 0:00:00]} 3. d4 {[%emt 0:00:14]} cxd4 {[%emt 0:00:06]} 4. Nxd4 {[%emt 0:00:03]} e5 {[%emt 0:00:28]} 5. Nb5 {[%emt 0:00:05]} d6 {[%emt 0:00:05]} 6. c4 {[%emt 0:00:15]} Be7 {[%emt 0:00:45]} 7. N5c3 {[%emt 0:00:09]} Nf6 {[%emt 0:05:44]} 8. Be2 {[%emt 0:00:31]} O-O {[%emt 0:04:25]} 9. O-O {[%emt 0:00:27]} Be6 {[%emt 0:06:02]} 10. Be3 {[%emt 0:01:55]} Rc8 {[%emt 0:01:51]} 11. Qd2 {[%emt 0:06:00]} Qd7 {[%emt 0:03:26]} 12. f3 {[%emt 0:05:11]} Bd8 {[%emt 0:17:00]} 13. Nb5 {[%emt 0:04:28]} Be7 {[%emt 0:07:00]} 14. Rd1 {[%emt 0:01:49]} a6 {[%emt 0:01:50]} 15. N5c3 {[%emt 0:06:43]} Qc7 {[%emt 0:10:52]} 16. Na3 {[%emt 0:08:51]} Qb8 {[%emt 0:08:45]} 17. Nd5 {[%emt 0:05:02]} Bxd5 {[%emt 0:00:13]} 18. exd5 {[%emt 0:07:55]} Nd4 {[%emt 0:00:31]} 19. Bxd4 {[%emt 0:03:18]} exd4 {[%emt 0:00:04]} 20. Nc2 {[%emt 0:00:07]} Nd7 {[%emt 0:00:12]} 21. Nxd4 {[%emt 0:00:30]} Bf6 {[%emt 0:00:30]} 22. Kh1 {[%emt 0:01:16]} Rfe8 {[%emt 0:01:21]} 23. Bf1 {[%emt 0:00:08]} Qa7 {[%emt 0:03:46]} 24. Rac1 {[%emt 0:01:03]} Qb6 {[%emt 0:07:14]} 25. b3 {[%emt 0:03:02]} g6 {[%emt 0:01:33]} 26. Nc2 {[%emt 0:09:39]} h5 {[%emt 0:08:18]} 27. Re1 {[%emt 0:03:27]} Kg7 {[%emt 0:01:30]} 28. Rxe8 {[%emt 0:03:50]} Rxe8 {[%emt 0:00:01]} 29. Re1 {[%emt 0:00:09]} Rxe1 {[%emt 0:00:54]} 30. Qxe1 {[%emt 0:00:53]} a5 {[%emt 0:03:21]} 31. Qe3 {[%emt 0:06:48]} Qxe3 {[%emt 0:00:48]} 32. Nxe3 {[%emt 0:00:03]} Nc5 {[%emt 0:00:18]} 33. Nc2 {[%emt 0:00:35]} Bb2 {[%emt 0:02:10]} 34. Kg1 {[%emt 0:00:52]} Kf6 {[%emt 0:00:15]} 35. Kf2 {[%emt 0:01:45]} Ke5 {[%emt 0:00:24]} 36. Ke2 {[%emt 0:04:02]} g5 {[%emt 0:01:06]} 37. Kd2 {[%emt 0:02:33]} f5 {[%emt 0:00:57]} 38. Bd3 {[%emt 0:08:16]} Kf4 {[%emt 0:02:45]} 39. Ne1 {[%emt 0:03:01]} h4 {[%emt 0:00:24]} 40. Be2 {[%emt 0:00:29]} Bd4 {[%emt 0:02:20]} 41. g3+ {[%emt 0:34:01]} hxg3 {[%emt 0:01:04]} 42. Ng2+ {[%emt 0:00:00]} Ke5 {[%emt 0:00:05]} 43. hxg3 {[%emt 0:00:00]} Bf2 {[%emt 0:06:49]} 44. f4+ {[%emt 0:00:00]} gxf4 {[%emt 0:00:10]} 45. gxf4+ {[%emt 0:00:00]} Ke4 {[%emt 0:04:53]} 46. Bd1 {[%emt 0:00:00]} Bg3 {[%emt 0:00:35]} 47. Ke2 {[%emt 0:00:00]} Bxf4 {[%emt 0:00:27]} 48. Bc2+ {[%emt 0:00:00]} Ke5 {[%emt 0:00:05]} 49. Nh4 {[%emt 0:00:00]} Kd4 {[%emt 0:00:10]} 50. Ng2 {[%emt 0:00:00]} Bg5 {[%emt 0:05:27]} 51. Bxf5 {[%emt 0:00:00]} Kc3 {[%emt 0:01:56]} 52. Ne1 {[%emt 0:00:00]} a4 {[%emt 0:02:42]} 53. bxa4 {[%emt 0:00:00]} Kxc4 {[%emt 0:00:20]} 54. Bc2 {[%emt 0:00:00]} Kxd5 {[%emt 0:00:56]} 55. Bb3+ {[%emt 0:00:00]} Kc6 {[%emt 0:01:20]} 56. Nd3 {[%emt 0:00:00]} Nxd3 1/2-1/2